Workbook

Sheet Compte Joint
A1: Saisie des mouvements du compte Joint
A2: Soldes Réel = | B2: =LOOKUP(2.1,1/(F2:F10001<>" "),F2:F10001) -> 10045 | C2: total débit relevé = | D2: =SUM(J6:J10001) -> 10 | E2: total crédit relevé= | F2: =SUM(L6:L10001) -> 265 | G2: soldes relevés= | H2: =B5-K3+I3 -> 10055
A3: 1 | I3: =SUM(I6:I10001) -> 1840 | K3: =SUM(K6:K10001) -> 1785
A4: Date | B4: N° Cheque ou CB | C4: Intitulé | D4: recettes | E4: dépenses | F4: Soldes | G4: Type | H4: pointage banque | M4: Année | N4: Mois
A5: solde depart | B5: 10000 | D5: =SUM(D6:D10002) -> 1840 | E5: =SUM(E6:E10002) -> 1795
A6: 2017-04-12 | B6: CB | C6: essence leclerc | E6: 500 | F6: =B5+D6-E6 -> 9500 | G6: Auto | H6: V | I6: =IF(H6=0,0,D6) -> 0 | J6: =IF(H6<>"p",0,D6) -> 0 | K6: =IF(H6=0,0,E6) -> 500 | L6: =IF(H6<>"p",0,E6) -> 0 | M6: =IF(A6=0,0,YEAR(A6)) -> 2017 | N6: =IF(A6=0,0,MONTH(A6)) -> 4
A7: 2017-04-13 | B7: 4444520 | C7: courses géant | E7: 240 | F7: =IF(D7-E7=0," ",F6+D7-E7) -> 9260 | G7: Alimentation | H7: P | I7: =IF(H7=0,0,D7) -> 0 | J7: =IF(H7<>"p",0,D7) -> 0 | K7: =IF(H7=0,0,E7) -> 240 | L7: =IF(H7<>"p",0,E7) -> 240 | M7: =IF(A7=0,0,YEAR(A7)) -> 2017 | N7: =IF(A7=0,0,MONTH(A7)) -> 4
A8: 2017-03-11 | B8: 4444521 | C8: enfants | E8: 20 | F8: 9240 | G8: Kdo | H8: V | I8: 0 | J8: 0 | K8: 20 | L8: 0 | M8: 2017 | N8: 3
A9: 2017-03-12 | B9: 4444522 | C9: loto | D9: 30 | F9: 9270 | G9: Jeux | H9: V | I9: 30 | J9: 0 | K9: 0 | L9: 0 | M9: =IF(A9=0,"",YEAR(A9)) -> 2017 | N9: =IF(A9=0,"",MONTH(A9)) -> 3
A10: 2017-02-11 | B10: CB | C10: carrefour | E10: 1000 | F10: 8270 | G10: Equipements Maison | H10: V | I10: 0 | J10: 0 | K10: 1000 | L10: 0 | M10: 2017 | N10: 2
A11: 2017-03-12 | B11: CB | C11: salaire | D11: 1800 | F11: 10070 | G11: Salaire | H11: V | I11: 1800 | J11: 0 | K11: 0 | L11: 0 | M11: 2017 | N11: 3
A12: 2017-03-13 | B12: CB | C12: dr | E12: 25 | F12: 10045 | G12: Santé | H12: P | I12: 0 | J12: 0 | K12: 25 | L12: 25 | M12: 2017 | N12: 3
A13: 2017-03-14 | B13: CB | C13: secu | D13: 10 | F13: 10055 | G13: Santé | H13: P | I13: 10 | J13: 10 | K13: 0 | L13: 0 | M13: 2017 | N13: 3
A14: 2017-03-15 | B14: cb | C14: cinema | E14: 10 | F14: =IF(D14-E14=0," ",F13+D14-E14) -> 10045 | G14: Loisirs | I14: 0 | J14: 0 | K14: 0 | L14: 0 | M14: 2017 | N14: 3
F15: =IF(D15-E15=0," ",F14+D15-E15) ->  | I15: 0 | J15: 0 | K15: 0 | L15: 0 | M15: =IF(A15=0,"",YEAR(A15)) ->  | N15: =IF(A15=0,"",MONTH(A15)) -> 
I16: 0 | J16: 0 | K16: 0 | L16: 0 | M16: =IF(A16=0,"",YEAR(A16)) ->  | N16: =IF(A16=0,"",MONTH(A16)) -> 
I17: 0 | J17: 0 | K17: 0 | L17: 0
I18: 0 | J18: 0 | K18: 0 | L18: 0
I19: 0 | J19: 0 | K19: 0 | L19: 0
I20: 0 | J20: 0 | K20: 0 | L20: 0
I21: 0 | J21: 0 | K21: 0 | L21: 0
I22: 0 | J22: 0 | K22: 0 | L22: 0
I23: 0 | J23: 0 | K23: 0 | L23: 0
I24: 0 | J24: 0 | K24: 0 | L24: 0
I25: 0 | J25: 0 | K25: 0 | L25: 0
I26: 0 | J26: 0 | K26: 0 | L26: 0
I27: 0 | J27: 0 | K27: 0 | L27: 0
I28: 0 | J28: 0 | K28: 0 | L28: 0
I29: 0 | J29: 0 | K29: 0 | L29: 0
I30: 0 | J30: 0 | K30: 0 | L30: 0
I31: 0 | J31: 0 | K31: 0 | L31: 0
I32: 0 | J32: 0 | K32: 0 | L32: 0
I33: 0 | J33: 0 | K33: 0 | L33: 0
I34: 0 | J34: 0 | K34: 0 | L34: 0
I35: 0 | J35: 0 | K35: 0 | L35: 0
I36: 0 | J36: 0 | K36: 0 | L36: 0
I37: 0 | J37: 0 | K37: 0 | L37: 0
I38: 0 | J38: 0 | K38: 0 | L38: 0
I39: 0 | J39: 0 | K39: 0 | L39: 0
I40: 0 | J40: 0 | K40: 0 | L40: 0
I41: 0 | J41: 0 | K41: 0 | L41: 0
I42: 0 | J42: 0 | K42: 0 | L42: 0
I43: 0 | J43: 0 | K43: 0 | L43: 0
I44: 0 | J44: 0 | K44: 0 | L44: 0
I45: 0 | J45: 0 | K45: 0 | L45: 0
I46: 0 | J46: 0 | K46: 0 | L46: 0
I47: 0 | J47: 0 | K47: 0 | L47: 0
I48: 0 | J48: 0 | K48: 0 | L48: 0
I49: 0 | J49: 0 | K49: 0 | L49: 0
I50: 0 | J50: 0 | K50: 0 | L50: 0
I51: 0 | J51: 0 | K51: 0 | L51: 0
I52: 0 | J52: 0 | K52: 0 | L52: 0
I53: 0 | J53: 0 | K53: 0 | L53: 0
I54: 0 | J54: 0 | K54: 0 | L54: 0
I55: 0 | J55: 0 | K55: 0 | L55: 0
I56: 0 | J56: 0 | K56: 0 | L56: 0
I57: 0 | J57: 0 | K57: 0 | L57: 0
I58: 0 | J58: 0 | K58: 0 | L58: 0
I59: 0 | J59: 0 | K59: 0 | L59: 0
I60: 0 | J60: 0 | K60: 0 | L60: 0
I61: 0 | J61: 0 | K61: 0 | L61: 0
I62: 0 | J62: 0 | K62: 0 | L62: 0
I63: 0 | J63: 0 | K63: 0 | L63: 0
I64: 0 | J64: 0 | K64: 0 | L64: 0
I65: 0 | J65: 0 | K65: 0 | L65: 0
I66: 0 | J66: 0 | K66: 0 | L66: 0
I67: 0 | J67: 0 | K67: 0 | L67: 0
I68: 0 | J68: 0 | K68: 0 | L68: 0
I69: 0 | J69: 0 | K69: 0 | L69: 0
I70: 0 | J70: 0 | K70: 0 | L70: 0
I71: =IF(H71=0,0,D71) -> 0 | J71: =IF(H71<>"p",0,D71) -> 0 | K71: =IF(H71=0,0,E71) -> 0 | L71: =IF(H71<>"p",0,E71) -> 0
I72: 0 | J72: 0 | K72: 0 | L72: 0
I73: 0 | J73: 0 | K73: 0 | L73: 0
I74: 0 | J74: 0 | K74: 0 | L74: 0
I75: 0 | J75: 0 | K75: 0 | L75: 0
I76: 0 | J76: 0 | K76: 0 | L76: 0
I77: 0 | J77: 0 | K77: 0 | L77: 0
I78: 0 | J78: 0 | K78: 0 | L78: 0
F79: =IF(D79-E79=0," ",F78+D79-E79) ->  | I79: 0 | J79: 0 | K79: 0 | L79: 0
I80: 0 | J80: 0 | K80: 0 | L80: 0 | M80: =IF(A80=0,"",YEAR(A80)) ->  | N80: =IF(A80=0,"",MONTH(A80)) -> 
I81: 0 | J81: 0 | K81: 0 | L81: 0
I82: 0 | J82: 0 | K82: 0 | L82: 0
I83: 0 | J83: 0 | K83: 0 | L83: 0
I84: 0 | J84: 0 | K84: 0 | L84: 0
I85: 0 | J85: 0 | K85: 0 | L85: 0
I86: 0 | J86: 0 | K86: 0 | L86: 0
I87: 0 | J87: 0 | K87: 0 | L87: 0
I88: 0 | J88: 0 | K88: 0 | L88: 0
I89: 0 | J89: 0 | K89: 0 | L89: 0
I90: 0 | J90: 0 | K90: 0 | L90: 0
I91: 0 | J91: 0 | K91: 0 | L91: 0
I92: 0 | J92: 0 | K92: 0 | L92: 0
I93: 0 | J93: 0 | K93: 0 | L93: 0
I94: 0 | J94: 0 | K94: 0 | L94: 0
I95: 0 | J95: 0 | K95: 0 | L95: 0
I96: 0 | J96: 0 | K96: 0 | L96: 0
I97: 0 | J97: 0 | K97: 0 | L97: 0
I98: 0 | J98: 0 | K98: 0 | L98: 0
I99: 0 | J99: 0 | K99: 0 | L99: 0
I100: 0 | J100: 0 | K100: 0 | L100: 0
I101: 0 | J101: 0 | K101: 0 | L101: 0
I102: 0 | J102: 0 | K102: 0 | L102: 0
I103: 0 | J103: 0 | K103: 0 | L103: 0
I104: 0 | J104: 0 | K104: 0 | L104: 0
I105: 0 | J105: 0 | K105: 0 | L105: 0
I106: 0 | J106: 0 | K106: 0 | L106: 0
I107: 0 | J107: 0 | K107: 0 | L107: 0
I108: 0 | J108: 0 | K108: 0 | L108: 0
I109: 0 | J109: 0 | K109: 0 | L109: 0
I110: 0 | J110: 0 | K110: 0 | L110: 0
I111: 0 | J111: 0 | K111: 0 | L111: 0
I112: 0 | J112: 0 | K112: 0 | L112: 0
I113: 0 | J113: 0 | K113: 0 | L113: 0
I114: 0 | J114: 0 | K114: 0 | L114: 0
I115: 0 | J115: 0 | K115: 0 | L115: 0
I116: 0 | J116: 0 | K116: 0 | L116: 0
I117: 0 | J117: 0 | K117: 0 | L117: 0
I118: 0 | J118: 0 | K118: 0 | L118: 0
I119: 0 | J119: 0 | K119: 0 | L119: 0
I120: 0 | J120: 0 | K120: 0 | L120: 0
I121: 0 | J121: 0 | K121: 0 | L121: 0
I122: 0 | J122: 0 | K122: 0 | L122: 0
I123: 0 | J123: 0 | K123: 0 | L123: 0
I124: 0 | J124: 0 | K124: 0 | L124: 0
I125: 0 | J125: 0 | K125: 0 | L125: 0
I126: 0 | J126: 0 | K126: 0 | L126: 0
I127: 0 | J127: 0 | K127: 0 | L127: 0
I128: 0 | J128: 0 | K128: 0 | L128: 0
I129: 0 | J129: 0 | K129: 0 | L129: 0
I130: 0 | J130: 0 | K130: 0 | L130: 0
I131: 0 | J131: 0 | K131: 0 | L131: 0
I132: 0 | J132: 0 | K132: 0 | L132: 0
I133: 0 | J133: 0 | K133: 0 | L133: 0
I134: 0 | J134: 0 | K134: 0 | L134: 0
I135: =IF(H135=0,0,D135) -> 0 | J135: =IF(H135<>"p",0,D135) -> 0 | K135: =IF(H135=0,0,E135) -> 0 | L135: =IF(H135<>"p",0,E135) -> 0
I136: 0 | J136: 0 | K136: 0 | L136: 0
I137: 0 | J137: 0 | K137: 0 | L137: 0
I138: 0 | J138: 0 | K138: 0 | L138: 0
I139: 0 | J139: 0 | K139: 0 | L139: 0
I140: 0 | J140: 0 | K140: 0 | L140: 0
I141: 0 | J141: 0 | K141: 0 | L141: 0
I142: 0 | J142: 0 | K142: 0 | L142: 0
F143: =IF(D143-E143=0," ",F142+D143-E143) ->  | I143: 0 | J143: 0 | K143: 0 | L143: 0
I144: 0 | J144: 0 | K144: 0 | L144: 0 | M144: =IF(A144=0,"",YEAR(A144)) ->  | N144: =IF(A144=0,"",MONTH(A144)) -> 
I145: 0 | J145: 0 | K145: 0 | L145: 0
I146: 0 | J146: 0 | K146: 0 | L146: 0
I147: 0 | J147: 0 | K147: 0 | L147: 0
I148: 0 | J148: 0 | K148: 0 | L148: 0
I149: 0 | J149: 0 | K149: 0 | L149: 0
I150: 0 | J150: 0 | K150: 0 | L150: 0
I151: 0 | J151: 0 | K151: 0 | L151: 0
I152: 0 | J152: 0 | K152: 0 | L152: 0
I153: 0 | J153: 0 | K153: 0 | L153: 0
I154: 0 | J154: 0 | K154: 0 | L154: 0
I155: 0 | J155: 0 | K155: 0 | L155: 0
I156: 0 | J156: 0 | K156: 0 | L156: 0
I157: 0 | J157: 0 | K157: 0 | L157: 0
I158: 0 | J158: 0 | K158: 0 | L158: 0
I159: 0 | J159: 0 | K159: 0 | L159: 0
I160: 0 | J160: 0 | K160: 0 | L160: 0
I161: 0 | J161: 0 | K161: 0 | L161: 0
I162: 0 | J162: 0 | K162: 0 | L162: 0
I163: 0 | J163: 0 | K163: 0 | L163: 0
I164: 0 | J164: 0 | K164: 0 | L164: 0
I165: 0 | J165: 0 | K165: 0 | L165: 0
I166: 0 | J166: 0 | K166: 0 | L166: 0
I167: 0 | J167: 0 | K167: 0 | L167: 0
I168: 0 | J168: 0 | K168: 0 | L168: 0
I169: 0 | J169: 0 | K169: 0 | L169: 0
I170: 0 | J170: 0 | K170: 0 | L170: 0
I171: 0 | J171: 0 | K171: 0 | L171: 0
I172: 0 | J172: 0 | K172: 0 | L172: 0
I173: 0 | J173: 0 | K173: 0 | L173: 0
I174: 0 | J174: 0 | K174: 0 | L174: 0
I175: 0 | J175: 0 | K175: 0 | L175: 0
I176: 0 | J176: 0 | K176: 0 | L176: 0
I177: 0 | J177: 0 | K177: 0 | L177: 0
I178: 0 | J178: 0 | K178: 0 | L178: 0
I179: 0 | J179: 0 | K179: 0 | L179: 0
I180: 0 | J180: 0 | K180: 0 | L180: 0
I181: 0 | J181: 0 | K181: 0 | L181: 0
I182: 0 | J182: 0 | K182: 0 | L182: 0
I183: 0 | J183: 0 | K183: 0 | L183: 0
I184: 0 | J184: 0 | K184: 0 | L184: 0
I185: 0 | J185: 0 | K185: 0 | L185: 0
I186: 0 | J186: 0 | K186: 0 | L186: 0
I187: 0 | J187: 0 | K187: 0 | L187: 0
I188: 0 | J188: 0 | K188: 0 | L188: 0
I189: 0 | J189: 0 | K189: 0 | L189: 0
I190: 0 | J190: 0 | K190: 0 | L190: 0
I191: 0 | J191: 0 | K191: 0 | L191: 0
I192: 0 | J192: 0 | K192: 0 | L192: 0
I193: 0 | J193: 0 | K193: 0 | L193: 0
I194: 0 | J194: 0 | K194: 0 | L194: 0
I195: 0 | J195: 0 | K195: 0 | L195: 0
I196: 0 | J196: 0 | K196: 0 | L196: 0
I197: 0 | J197: 0 | K197: 0 | L197: 0
I198: 0 | J198: 0 | K198: 0 | L198: 0
I199: =IF(H199=0,0,D199) -> 0 | J199: =IF(H199<>"p",0,D199) -> 0 | K199: =IF(H199=0,0,E199) -> 0 | L199: =IF(H199<>"p",0,E199) -> 0
I200: 0 | J200: 0 | K200: 0 | L200: 0
... 4300 more rows

Sheet Feuil2
A1: Crédit | D1: Par Type | E1: Cumul Recettes | F1: Cumul Dépenses
A2: Salaire | D2: Salaire | E2: =SUMIF('Compte Joint'!$G$6:$G$1003,$A$2:$A$8,'Compte Joint'!$D$6:$D$1003) -> 1800 | F2: =SUMIF('Compte Joint'!$G$6:$G$1003,A11:A15,'Compte Joint'!$E$6:$E$1003) -> 0
A3: Kdo | D3: Kdo | E3: =SUMIF('Compte Joint'!$G$6:$G$1003,$A$2:$A$8,'Compte Joint'!$D$6:$D$1003) -> 0 | F3: =SUMIF('Compte Joint'!$G$6:$G$1003,A12:A16,'Compte Joint'!$E$6:$E$1003) -> 0
A4: Santé | D4: Santé | E4: =SUMIF('Compte Joint'!$G$6:$G$1003,$A$2:$A$8,'Compte Joint'!$D$6:$D$1003) -> 10 | F4: =SUMIF('Compte Joint'!$G$6:$G$1003,A13:A17,'Compte Joint'!$E$6:$E$1003) -> 0
A5: Jeux | D5: Jeux | E5: =SUMIF('Compte Joint'!$G$6:$G$1003,$A$2:$A$8,'Compte Joint'!$D$6:$D$1003) -> 30 | F5: =SUMIF('Compte Joint'!$G$6:$G$1003,A14:A18,'Compte Joint'!$E$6:$E$1003) -> 0
A6: Remb | D6: Remb | E6: =SUMIF('Compte Joint'!$G$6:$G$1003,$A$2:$A$8,'Compte Joint'!$D$6:$D$1003) -> 0 | F6: =SUMIF('Compte Joint'!$G$6:$G$1003,A15:A19,'Compte Joint'!$E$6:$E$1003) -> 0
E7: =SUMIF('Compte Joint'!$G$6:$G$1003,$A$2:$A$8,'Compte Joint'!$D$6:$D$1003) -> 0 | F7: =SUMIF('Compte Joint'!$G$6:$G$1003,A16:A20,'Compte Joint'!$E$6:$E$1003) -> 0
E8: =SUMIF('Compte Joint'!$G$6:$G$1003,$A$2:$A$8,'Compte Joint'!$D$6:$D$1003) -> 0
A9: Dépenses | D9: Alimentation | F9: =SUMIF('Compte Joint'!$G$6:$G$1003,$A$10:$A$26,'Compte Joint'!$E$6:$E$1003) -> 0
A10: Alimentation | D10: Auto | F10: =SUMIF('Compte Joint'!$G$6:$G$1003,$A$10:$A$26,'Compte Joint'!$E$6:$E$1003) -> 240
A11: Auto | D11: Eau | F11: =SUMIF('Compte Joint'!$G$6:$G$1003,$A$10:$A$26,'Compte Joint'!$E$6:$E$1003) -> 500
A12: Eau | D12: Electricite | F12: =SUMIF('Compte Joint'!$G$6:$G$1003,$A$10:$A$26,'Compte Joint'!$E$6:$E$1003) -> 0
A13: Electricite | D13: Equipements Maison | F13: =SUMIF('Compte Joint'!$G$6:$G$1003,$A$10:$A$26,'Compte Joint'!$E$6:$E$1003) -> 0
A14: Equipements Maison | D14: Especes | F14: =SUMIF('Compte Joint'!$G$6:$G$1003,$A$10:$A$26,'Compte Joint'!$E$6:$E$1003) -> 1000
A15: Especes | D15: Gaz | F15: =SUMIF('Compte Joint'!$G$6:$G$1003,$A$10:$A$26,'Compte Joint'!$E$6:$E$1003) -> 0
A16: Gaz | D16: Habillement | F16: =SUMIF('Compte Joint'!$G$6:$G$1003,$A$10:$A$26,'Compte Joint'!$E$6:$E$1003) -> 0
A17: Habillement | D17: Impots | F17: =SUMIF('Compte Joint'!$G$6:$G$1003,$A$10:$A$26,'Compte Joint'!$E$6:$E$1003) -> 0
A18: Impots | D18: Kdo | F18: =SUMIF('Compte Joint'!$G$6:$G$1003,$A$10:$A$26,'Compte Joint'!$E$6:$E$1003) -> 0
A19: Kdo | D19: Loisirs | F19: =SUMIF('Compte Joint'!$G$6:$G$1003,$A$10:$A$26,'Compte Joint'!$E$6:$E$1003) -> 20
A20: Loisirs | D20: Loyer | F20: =SUMIF('Compte Joint'!$G$6:$G$1003,$A$10:$A$26,'Compte Joint'!$E$6:$E$1003) -> 10
A21: Loyer | D21: Santé | F21: =SUMIF('Compte Joint'!$G$6:$G$1003,$A$10:$A$26,'Compte Joint'!$E$6:$E$1003) -> 0
A22: Santé
A27: pointage
A28: P
A30: n° Chequier
A31: xxxxxxx1
A32: CB

Sheet Feuil3
